Workbook

Sheet Sheet1
B2: NOTE: mean, Q1, Q2, Q3 and sum values are in bp
E4: Gene | K4: Exon | Q4: Intron | W4: Intergenic
B6: o | C6: sp | D6: genome size | E6: gene_n | F6: gene_sum | G6: gene_mean | H6: gene_Q1 | I6: gene_Q2 | J6: gene_Q3 | K6: exon_n | L6: exon_sum | M6: exon_mean | N6: exon_Q1 | O6: exon_Q2 | P6: exon_Q3 | Q6: intron_n | R6: intron_sum | S6: intron_mean | T6: intron_Q1 | U6: intron_Q2 | V6: intron_Q3 | W6: intergenic_n | X6: intergenic_sum | Y6: intergenic_Q1 | Z6: intergenic_Q2 | AA6: intergenic_Q3
B7: 1 | C7: Hsap | D7: =(F7+X7)/1000000 -> 3159.437077 | E7: 22447 | F7: 1041279392 | G7: 46388.4 | H7: 3971 | I7: 14657 | J7: 43959 | K7: 215001 | L7: 37114038 | M7: 172.623 | N7: 85 | O7: 123 | P7: 172 | Q7: 192554 | R7: 1003780246 | S7: 5212.98 | T7: 440 | U7: 1406 | V7: 3735 | W7: 19021 | X7: 2118157685 | Y7: 7442 | Z7: 23268 | AA7: 71975
B8: 2 | C8: Cint | D8: =(F8+X8)/1000000 -> 116.310316 | E8: 16671 | F8: 57655590 | G8: 3458.44 | H8: 975 | I8: 2113 | J8: 4312 | K8: 107347 | L8: 15992569 | M8: 148.98 | N8: 88 | O8: 127 | P8: 169 | Q8: 90676 | R8: 41481669 | S8: 457.471 | T8: 198 | U8: 323 | V8: 483 | W8: 16848 | X8: 58654726 | Y8: 910 | Z8: 1978 | AA8: 4268
B9: 3 | C9: Bflo | D9: =(F9+X9)/1000000 -> 923.347817 | E9: 50817 | F9: 463295914 | G9: 9116.95 | H9: 1900 | I9: 4932 | J9: 10995 | K9: 356631 | L9: 72376871 | M9: 202.946 | N9: 95 | O9: 136 | P9: 194 | Q9: 305811 | R9: 390308021 | S9: 1276.3 | T9: 339 | U9: 531 | V9: 1031 | W9: 53481 | X9: 460051903 | Y9: 1611 | Z9: 3817 | AA9: 8949
B10: 4 | C10: Skow | D10: =(F10+X10)/1000000 -> 775.937953 | E10: 20943 | F10: 259123406 | G10: 12372.8 | H10: 2347 | I10: 6796 | J10: 15589 | K10: 157817 | L10: 30977737 | M10: 196.289 | N10: 93 | O10: 135 | P10: 196 | Q10: 136874 | R10: 227871921 | S10: 1664.83 | T10: 320 | U10: 660 | V10: 1448 | W10: 74984 | X10: 516814547 | Y10: 843 | Z10: 1432 | AA10: 5965
B11: 5 | C11: Spur | D11: =(F11+X11)/1000000 -> 970.521516 | E11: 28842 | F11: 313713392 | G11: 10877 | H11: 2041 | I11: 5664 | J11: 12548 | K11: 186994 | L11: 40821539 | M11: 218.304 | N11: 97 | O11: 141 | P11: 208 | Q11: 157677 | R11: 272646436 | S11: 1729.15 | T11: 490 | U11: 738 | V11: 1283 | W11: 55610 | X11: 656808124 | Y11: 851 | Z11: 2758 | AA11: 11736
B12: 6 | C12: Dmel | D12: =(F12+X12)/1000000 -> 144.990351 | E12: 13917 | F12: 62367884 | G12: 4481.42 | H12: 794 | I12: 1541 | J12: 3163 | K12: 55106 | L12: 22314225 | M12: 404.933 | N12: 128 | O12: 216 | P12: 476 | Q12: 41189 | R12: 39971281 | S12: 970.436 | T12: 59 | U12: 68 | V12: 264 | W12: 14906 | X12: 82622467 | Y12: 596 | Z12: 1296 | AA12: 3774
B13: 7 | C13: Dpul | D13: =(F13+X13)/1000000 -> 197.201424 | E13: 30590 | F13: 61661302 | G13: 2015.73 | H13: 628 | I13: 1172 | J13: 2193 | K13: 142164 | L13: 29878404 | M13: 210.169 | N13: 88 | O13: 146 | P13: 230 | Q13: 111574 | R13: 31559750 | S13: 282.859 | T13: 64 | U13: 74 | V13: 140 | W13: 35618 | X13: 135540122 | Y13: 552 | Z13: 1419 | AA13: 3947
B14: 8 | C14: Cele | D14: =(F14+X14)/1000000 -> 101.073712 | E14: 20447 | F14: 56996994 | G14: 2787.55 | H14: 1040 | I14: 1785 | J14: 3189 | K14: 124639 | L14: 25025927 | M14: 200.787 | N14: 98 | O14: 144 | P14: 232 | Q14: 104192 | R14: 31762683 | S14: 304.848 | T14: 47 | U14: 62 | V14: 321 | W14: 19896 | X14: 44076718 | Y14: 460 | Z14: 997 | AA14: 2419
B15: 9 | C15: Lgig | D15: =(F15+X15)/1000000 -> 359.526496 | E15: 23340 | F15: 117731586 | G15: 5044.2 | H15: 1045 | I15: 2689 | J15: 5994 | K15: 140249 | L15: 26645273 | M15: 189.985 | N15: 88 | O15: 129 | P15: 187 | Q15: 116909 | R15: 90852495 | S15: 777.121 | T15: 250 | U15: 366 | V15: 607 | W15: 27713 | X15: 241794910 | Y15: 1508 | Z15: 3618 | AA15: 8934
B16: 10 | C16: Ctel | D16: =(F16+X16)/1000000 -> 333.256258 | E16: 32175 | F16: 84661299 | G16: 2631.28 | H16: 812 | I16: 1632 | J16: 3327 | K16: 171418 | L16: 34127501 | M16: 199.089 | N16: 89 | O16: 134 | P16: 204 | Q16: 139243 | R16: 50255312 | S16: 360.918 | T16: 52 | U16: 60 | V16: 256 | W16: 52835 | X16: 248594959 | Y16: 1093 | Z16: 2291 | AA16: 5880
B17: 11 | C17: Nvec | D17: =(F17+X17)/1000000 -> 356.607028 | E17: 24773 | F17: 110098445 | G17: 4444.29 | H17: 734 | I17: 2300 | J17: 5872 | K17: 131666 | L17: 24745593 | M17: 187.942 | N17: 76 | O17: 117 | P17: 198 | Q17: 106893 | R17: 85139066 | S17: 796.489 | T17: 231 | U17: 436 | V17: 819 | W17: 35422 | X17: 246508583 | Y17: 1211 | Z17: 3636 | AA17: 7995
B18: 12 | C18: Aipt | D18: =(F18+X18)/1000000 -> 277.881907 | E18: 29271 | F18: 162420008 | G18: 5548.84 | H18: 1644 | I18: 3463 | J18: 6961 | K18: 212739 | L18: 45193707 | M18: 212.437 | N18: 72 | O18: 116 | P18: 207 | Q18: 183468 | R18: 116859365 | S18: 636.947 | T18: 131 | U18: 278 | V18: 551 | W18: 31019 | X18: 115461899 | Y18: 910 | Z18: 2048 | AA18: 4519
B19: 13 | C19: Tadh | D19: =(F19+X19)/1000000 -> 105.629502 | E19: 11520 | F19: 39861249 | G19: 3460.18 | H19: 1388 | I19: 2627 | J19: 4469 | K19: 96959 | L19: 15560971 | M19: 160.49 | N19: 70 | O19: 101 | P19: 153 | Q19: 85439 | R19: 24129400 | S19: 282.417 | T19: 93 | U19: 133 | V19: 256 | W19: 12912 | X19: 65768253 | Y19: 1274 | Z19: 2548.5 | AA19: 5311
B20: 14 | C20: Mlei | D20: =(F20+X20)/1000000 -> 158.01783 | E20: 16058 | F20: 86419040 | G20: 5381.68 | H20: 1058 | I20: 2480.5 | J20: 6857 | K20: 88550 | L20: 22120134 | M20: 249.804 | N20: 101 | O20: 138 | P20: 198 | Q20: 72492 | R20: 64153922 | S20: 884.979 | T20: 172 | U20: 275 | V20: 741 | W20: 20105 | X20: 71598790 | Y20: 1002 | Z20: 1801 | AA20: 4435
B21: 15 | C21: Ocar | D21: =(F21+X21)/1000000 -> 57.764154 | E21: 11152 | F21: 21899136 | G21: 1963.7 | H21: 648 | I21: 1294 | J21: 2509 | K21: 73725 | L21: 13838125 | M21: 187.699 | N21: 73 | O21: 109 | P21: 176 | Q21: 62573 | R21: 7935865 | S21: 126.826 | T21: 51 | U21: 55 | V21: 65 | W21: 78701 | X21: 35865018 | Y21: 113 | Z21: 165 | AA21: 471
B22: 16 | C22: Aque | D22: =(F22+X22)/1000000 -> 169.209357 | E22: 29883 | F22: 69441937 | G22: 2323.79 | H22: 673 | I22: 1343 | J22: 2777 | K22: 166744 | L22: 34975159 | M22: 209.754 | N22: 74 | O22: 118 | P22: 194 | Q22: 136861 | R22: 34193056 | S22: 249.838 | T22: 50 | U22: 76 | V22: 220 | W22: 40204 | X22: 99767420 | Y22: 215 | Z22: 885 | AA22: 2365
B23: 17 | C23: Scil | D23: =(F23+X23)/1000000 -> 362.421017 | E23: 26105 | F23: 168619082 | G23: 6459.26 | H23: 635 | I23: 2596 | J23: 8744 | K23: 140348 | L23: 33278195 | M23: 237.112 | N23: 80 | O23: 125 | P23: 219 | Q23: 114243 | R23: 135112401 | S23: 1182.68 | T23: 381 | U23: 654 | V23: 1247 | W23: 30245 | X23: 193801935 | Y23: 1479 | Z23: 3521 | AA23: 8094
B24: 18 | C24: Mbre | D24: =(F24+X24)/1000000 -> 41.627093 | E24: 9172 | F24: 26696301 | G24: 2910.63 | H24: 1244 | I24: 2076.5 | J24: 3543 | K24: 69022 | L24: 16455146 | M24: 238.404 | N24: 79 | O24: 119 | P24: 207 | Q24: 59850 | R24: 10121455 | S24: 169.114 | T24: 92 | U24: 112 | V24: 146 | W24: 9353 | X24: 14930792 | Y24: 479 | Z24: 823 | AA24: 1549
B25: 19 | C25: Sros | D25: =(F25+X25)/1000000 -> 55.42961 | E25: 11624 | F25: 45015635 | G25: 3872.65 | H25: 1653 | I25: 2876.5 | J25: 4909 | K25: 98139 | L25: 23096940 | M25: 235.349 | N25: 74 | O25: 108 | P25: 178 | Q25: 86515 | R25: 21745665 | S25: 251.351 | T25: 178 | U25: 222 | V25: 274 | W25: 11759 | X25: 10413975 | Y25: 319 | Z25: 539 | AA25: 865
B26: 20 | C26: Cowc | D26: =(F26+X26)/1000000 -> 27.967748 | E26: 8741 | F26: 21479783 | G26: 2457.36 | H26: 1276 | I26: 2042 | J26: 3138 | K26: 46820 | L26: 18374528 | M26: 392.45 | N26: 83 | O26: 153 | P26: 348 | Q26: 32468 | R26: 5042235 | S26: 155.299 | T26: 85 | U26: 103 | V26: 137 | W26: 8790 | X26: 6487965 | Y26: 229 | Z26: 373 | AA26: 772
B27: 21 | C27: Sarc | D27: =(F27+X27)/1000000 -> 121.570022 | E27: 18319 | F27: 42617150 | G27: 2326.39 | H27: 425 | I27: 1173 | J27: 3024 | K27: 64003 | L27: 16190643 | M27: 252.967 | N27: 104 | O27: 153 | P27: 233 | Q27: 45684 | R27: 26335139 | S27: 576.463 | T27: 263 | U27: 454 | V27: 730 | W27: 33868 | X27: 78952872 | Y27: 458 | Z27: 901 | AA27: 2123
B28: 22 | C28: Cfra | D28: =(F28+X28)/1000000 -> 44.819477 | E28: 8694 | F28: 31141231 | G28: 3581.92 | H28: 1487 | I28: 2614 | J28: 4553 | K28: 65960 | L28: 13652038 | M28: 206.974 | N28: 94 | O28: 134 | P28: 195 | Q28: 57266 | R28: 17374661 | S28: 303.403 | T28: 178 | U28: 267 | V28: 388 | W28: 8749 | X28: 13678246 | Y28: 732 | Z28: 1208 | AA28: 2006
B29: 23 | C29: Ihof | D29: =(F29+X29)/1000000 -> 88.077866 | E29: 6351 | F29: 28753089 | G29: 4527.33 | H29: 822 | I29: 2978 | J29: 6233 | K29: 49243 | L29: 6780597 | M29: 137.697 | N29: 78 | O29: 106 | P29: 148 | Q29: 42892 | R29: 21886708 | S29: 510.275 | T29: 273 | U29: 417 | V29: 641 | W29: 7983 | X29: 59324777 | Y29: 2301 | Z29: 5256 | AA29: 9159
B30: 24 | C30: Awhi | D30: =(F30+X30)/1000000 -> 101.893016 | E30: 17283 | F30: 12156951 | G30: 703.405 | H30: 231 | I30: 435 | J30: 909 | K30: 26238 | L30: 10004103 | M30: 381.283 | N30: 151 | O30: 220 | P30: 414 | Q30: 8955 | R30: 2134938 | S30: 238.407 | T30: 116 | U30: 196 | V30: 307 | W30: 91904 | X30: 89736065 | Y30: 290 | Z30: 671 | AA30: 1256
B31: 25 | C31: Pgem | D31: =(F31+X31)/1000000 -> 84.444587 | E31: 21835 | F31: 12160633 | G31: 556.933 | H31: 219 | I31: 347 | J31: 677 | K31: 30224 | L31: 10800598 | M31: 357.352 | N31: 158 | O31: 230.5 | P31: 402 | Q31: 8389 | R31: 1343257 | S31: 160.121 | T31: 57 | U31: 122 | V31: 212 | W31: 100578 | X31: 72283954 | Y31: 247 | Z31: 433 | AA31: 910
B32: 26 | C32: Nk52 | D32: =(F32+X32)/1000000 -> 36.894251 | E32: 12463 | F32: 21488970 | G32: 1724.22 | H32: 731 | I32: 1322 | J32: 2104 | K32: 20267 | L32: 20265250 | M32: 999.914 | N32: 205 | O32: 537 | P32: 1352 | Q32: 7804 | R32: 1208112 | S32: 154.807 | T32: 85 | U32: 99 | V32: 121 | W32: 24488 | X32: 15405281 | Y32: 178 | Z32: 327 | AA32: 652
B33: 27 | C33: Clim | D33: =(F33+X33)/1000000 -> 24.107772 | E33: 7535 | F33: 12049005 | G33: 1599.07 | H33: 797 | I33: 1280 | J33: 2003 | K33: 7915 | L33: 11979608 | M33: 1513.53 | N33: 695 | O33: 1205 | P33: 1925 | Q33: 380 | R33: 68637 | S33: 180.624 | T33: 49 | U33: 94 | V33: 178 | W33: 7822 | X33: 12058767 | Y33: 262 | Z33: 774 | AA33: 1823
B34: 28 | C34: Spom | D34: =(F34+X34)/1000000 -> 12.632459 | E34: 5144 | F34: 7586353 | G34: 1474.8 | H34: 755 | I34: 1216 | J34: 1843 | K34: 10210 | L34: 7161745 | M34: 701.444 | N34: 105 | O34: 306 | P34: 986 | Q34: 5066 | R34: 414476 | S34: 81.8152 | T34: 45 | U34: 55 | V34: 84 | W34: 5118 | X34: 5046106 | Y34: 400 | Z34: 687 | AA34: 1161
B35: 29 | C35: Ncra | D35: =(F35+X35)/1000000 -> 39.216276 | E35: 9820 | F35: 16641091 | G35: 1694.61 | H35: 894 | I35: 1422.5 | J35: 2142 | K35: 26926 | L35: 14299118 | M35: 531.052 | N35: 91 | O35: 239 | P35: 691 | Q35: 17106 | R35: 2307761 | S35: 134.909 | T35: 64 | U35: 83 | V35: 152 | W35: 10070 | X35: 22575185 | Y35: 812 | Z35: 1397.5 | AA35: 2459
B36: 30 | C36: Scer | D36: =(F36+X36)/1000000 -> 12.409949 | E36: 6692 | F36: 9136400 | G36: 1365.27 | H36: 560 | I36: 1082 | J36: 1769 | K36: 7050 | L36: 9024126 | M36: 1280.02 | N36: 464 | O36: 1022 | P36: 1718 | Q36: 0 | R36: 0 | S36: 0 | T36: 0 | U36: 0 | V36: 0 | W36: 6011 | X36: 3273549 | Y36: 234 | Z36: 361 | AA36: 620
B37: 31 | C37: Cneo | D37: =(F37+X37)/1000000 -> 18.885071 | E37: 6962 | F37: 13235150 | G37: 1901.06 | H37: 1039 | I37: 1613 | J37: 2393 | K37: 43483 | L37: 10878032 | M37: 250.167 | N37: 78 | O37: 144 | P37: 288 | Q37: 36521 | R37: 2284076 | S37: 62.5414 | T37: 50 | U37: 54 | V37: 62 | W37: 6967 | X37: 5649921 | Y37: 285 | Z37: 491 | AA37: 911
B38: 32 | C38: Umay | D38: =(F38+X38)/1000000 -> 19.737816 | E38: 6522 | F38: 12596500 | G38: 1931.39 | H38: 986 | I38: 1574 | J38: 2473 | K38: 11420 | L38: 11969650 | M38: 1048.13 | N38: 149 | O38: 567 | P38: 1574 | Q38: 4898 | R38: 617054 | S38: 125.981 | T38: 62 | U38: 94 | V38: 145 | W38: 6792 | X38: 7141316 | Y38: 380 | Z38: 721 | AA38: 1331
B39: 33 | C39: Mver | D39: =(F39+X39)/1000000 -> 41.841692 | E39: 12457 | F39: 24174169 | G39: 1940.61 | H39: 992 | I39: 1634 | J39: 2473 | K39: 46528 | L39: 19283486 | M39: 414.449 | N39: 107 | O39: 213 | P39: 485 | Q39: 34071 | R39: 4822541 | S39: 141.544 | T39: 87 | U39: 99 | V39: 123 | W39: 12512 | X39: 17667523 | Y39: 315 | Z39: 733 | AA39: 1691
B40: 34 | C40: Rory | D40: =(F40+X40)/1000000 -> 46.131419 | E40: 17459 | F40: 21153316 | G40: 1211.6 | H40: 527 | I40: 938 | J40: 1511 | K40: 57974 | L40: 17908243 | M40: 308.901 | N40: 79 | O40: 165 | P40: 358 | Q40: 40515 | R40: 3164043 | S40: 78.0956 | T40: 50 | U40: 56 | V40: 76 | W40: 17540 | X40: 24978103 | Y40: 467 | Z40: 952 | AA40: 1843
B41: 35 | C41: Amac | D41: =(F41+X41)/1000000 -> 57.042104 | E41: 18773 | F41: 31547956 | G41: 1680.5 | H41: 830 | I41: 1383 | J41: 2121 | K41: 62549 | L41: 26965189 | M41: 431.105 | N41: 107 | O41: 233 | P41: 516 | Q41: 43776 | R41: 4495215 | S41: 102.687 | T41: 68 | U41: 74 | V41: 85 | W41: 18864 | X41: 25494148 | Y41: 396 | Z41: 694 | AA41: 1356
B42: 36 | C42: Spun | D42: =(F42+X42)/1000000 -> 24.122251 | E42: 8952 | F42: 16909361 | G42: 1888.89 | H42: 942 | I42: 1484.5 | J42: 2324 | K42: 51990 | L42: 13847970 | M42: 266.358 | N42: 85 | O42: 144 | P42: 277 | Q42: 43038 | R42: 2975315 | S42: 69.1323 | T42: 59 | U42: 64 | V42: 70 | W42: 8987 | X42: 7212890 | Y42: 225 | Z42: 419 | AA42: 899
B43: 37 | C43: Rirr | D43: =(F43+X43)/1000000 -> 90.346215 | E43: 29822 | F43: 32866659 | G43: 1102.09 | H43: 452 | I43: 852 | J43: 1430 | K43: 102015 | L43: 23980070 | M43: 235.064 | N43: 72 | O43: 139 | P43: 267 | Q43: 72193 | R43: 8742203 | S43: 121.095 | T43: 70 | U43: 78 | V43: 94 | W43: 57498 | X43: 57479556 | Y43: 203 | Z43: 669 | AA43: 1415
B44: 38 | C44: Gpro | D44: =(F44+X44)/1000000 -> 48.787834 | E44: 13902 | F44: 23092681 | G44: 1661.1 | H44: 806 | I44: 1389 | J44: 2138 | K44: 75719 | L44: 17208445 | M44: 227.267 | N44: 80 | O44: 143 | P44: 263 | Q44: 61811 | R44: 5763269 | S44: 93.2402 | T44: 60 | U44: 67 | V44: 84 | W44: 14148 | X44: 25695153 | Y44: 240 | Z44: 539 | AA44: 1354
B45: 39 | C45: Rall | D45: =(F45+X45)/1000000 -> 11.885518 | E45: 6350 | F45: 8365231 | G45: 1317.36 | H45: 575 | I45: 987 | J45: 1647 | K45: 26973 | L45: 7394395 | M45: 274.141 | N45: 93 | O45: 162 | P45: 308 | Q45: 20623 | R45: 929590 | S45: 45.0754 | T45: 26 | U45: 28 | V45: 38 | W45: 6973 | X45: 3520287 | Y45: 84 | Z45: 235 | AA45: 594
B46: 40 | C46: Falb | D46: =(F46+X46)/1000000 -> 31.210741 | E46: 5881 | F46: 17293707 | G46: 2940.61 | H46: 1209 | I46: 2143 | J46: 3786 | K46: 27818 | L46: 12038287 | M46: 432.752 | N46: 113 | O46: 215 | P46: 471 | Q46: 21937 | R46: 5211546 | S46: 237.569 | T46: 118 | U46: 151 | V46: 199 | W46: 6090 | X46: 13917034 | Y46: 606 | Z46: 1203 | AA46: 2565
B47: 41 | C47: Ttra | D47: =(F47+X47)/1000000 -> 28.670779 | E47: 10544 | F47: 22489124 | G47: 2132.88 | H47: 1001 | I47: 1535 | J47: 2576 | K47: 19878 | L47: 20522994 | M47: 1032.45 | N47: 128 | O47: 683 | P47: 1424 | Q47: 9334 | R47: 1947462 | S47: 208.642 | T47: 48 | U47: 114 | V47: 275 | W47: 10652 | X47: 6181655 | Y47: 111 | Z47: 321 | AA47: 724
B48: 42 | C48: Ddis | D48: =(F48+X48)/1000000 -> 34.124565 | E48: 13212 | F48: 23351661 | G48: 1767.46 | H48: 740 | I48: 1352 | J48: 2288 | K48: 30000 | L48: 21013853 | M48: 700.462 | N48: 143 | O48: 320 | P48: 826 | Q48: 16788 | R48: 2304232 | S48: 137.255 | T48: 85 | U48: 103 | V48: 137 | W48: 13219 | X48: 10772904 | Y48: 297 | Z48: 572 | AA48: 1017
B49: 43 | C49: Ppal | D49: =(F49+X49)/1000000 -> 32.957819 | E49: 12367 | F49: 25303910 | G49: 2046.08 | H49: 925 | I49: 1590 | J49: 2596 | K49: 45714 | L49: 19122692 | M49: 418.312 | N49: 93 | O49: 219 | P49: 484 | Q49: 33347 | R49: 6114524 | S49: 183.361 | T49: 71 | U49: 87 | V49: 166 | W49: 12409 | X49: 7653909 | Y49: 194 | Z49: 389 | AA49: 764
B50: 44 | C50: Ppol | D50: =(F50+X50)/1000000 -> 209.360322 | E50: 42765 | F50: 57701987 | G50: 1349.28 | H50: 378 | I50: 708 | J50: 1381 | K50: 122905 | L50: 34769087 | M50: 282.894 | N50: 96 | O50: 155 | P50: 317 | Q50: 80140 | R50: 22772620 | S50: 284.16 | T50: 91 | U50: 183 | V50: 337 | W50: 113842 | X50: 151658335 | Y50: 198 | Z50: 317 | AA50: 678
B51: 45 | C51: Ehis | D51: =(F51+X51)/1000000 -> 20.82782 | E51: 8113 | F51: 10393358 | G51: 1281.07 | H51: 626 | I51: 991 | J51: 1571 | K51: 10634 | L51: 10210394 | M51: 960.165 | N51: 329 | O51: 668 | P51: 1278 | Q51: 2521 | R51: 177922 | S51: 70.576 | T51: 49 | U51: 56 | V51: 69 | W51: 9595 | X51: 10434462 | Y51: 138 | Z51: 372 | AA51: 1271
B52: 46 | C52: Acas | D52: =(F52+X52)/1000000 -> 42.018667 | E52: 14973 | F52: 29450402 | G52: 1966.9 | H52: 846 | I52: 1526 | J52: 2534 | K52: 105758 | L52: 19592426 | M52: 185.257 | N52: 87 | O52: 126 | P52: 195 | Q52: 90785 | R52: 9676406 | S52: 106.586 | T52: 76 | U52: 92 | V52: 117 | W52: 15261 | X52: 12568265 | Y52: 175 | Z52: 352 | AA52: 730
B53: 47 | C53: Atha | D53: =(F53+X53)/1000000 -> 119.702455 | E53: 27416 | F53: 51157287 | G53: 1865.96 | H53: 895 | I53: 1555 | J53: 2400 | K53: 140573 | L53: 33180942 | M53: 236.041 | N53: 83 | O53: 132 | P53: 245 | Q53: 113157 | R53: 17750031 | S53: 156.862 | T53: 84 | U53: 97 | V53: 155 | W53: 27312 | X53: 68545168 | Y53: 611 | Z53: 1204 | AA53: 2473
B54: 48 | C54: Bdis | D54: =(F54+X54)/1000000 -> 271.896754 | E54: 26552 | F54: 75630342 | G54: 2848.39 | H54: 1118 | I54: 2158.5 | J54: 3708 | K54: 133333 | L54: 33886804 | M54: 254.152 | N54: 83 | O54: 134 | P54: 256 | Q54: 106781 | R54: 41529976 | S54: 388.927 | T54: 93 | U54: 146 | V54: 468 | W54: 26635 | X54: 196266412 | Y54: 1600 | Z54: 3558 | AA54: 7965
B55: 49 | C55: Smoe | D55: =(F55+X55)/1000000 -> 212.615525 | E55: 34799 | F55: 57035832 | G55: 1639.01 | H55: 829 | I55: 1335 | J55: 2008 | K55: 197233 | L55: 40866453 | M55: 207.199 | N55: 80 | O55: 125 | P55: 215 | Q55: 162434 | R55: 15844511 | S55: 97.5443 | T55: 51 | U55: 57 | V55: 71 | W55: 35504 | X55: 155579693 | Y55: 440 | Z55: 1172 | AA55: 3268
B56: 50 | C56: Ppat | D56: =(F56+X56)/1000000 -> 479.97221 | E56: 32273 | F56: 65486096 | G56: 2029.13 | H56: 491 | I56: 1403 | J56: 2775 | K56: 149804 | L56: 33950213 | M56: 226.631 | N56: 83 | O56: 138 | P56: 245 | Q56: 117531 | R56: 31300821 | S56: 266.32 | T56: 146 | U56: 208 | V56: 304 | W56: 34359 | X56: 414486114 | Y56: 1395 | Z56: 3704 | AA56: 12427
B57: 51 | C57: Crei | D57: =(F57+X57)/1000000 -> 120.459128 | E57: 14416 | F57: 58725603 | G57: 4073.64 | H57: 1318 | I57: 2710 | J57: 4992 | K57: 119091 | L57: 19515614 | M57: 163.871 | N57: 73 | O57: 115 | P57: 179 | Q57: 104675 | R57: 39000639 | S57: 372.588 | T57: 164 | U57: 237 | V57: 362 | W57: 15877 | X57: 61733525 | Y57: 833 | Z57: 1708 | AA57: 3903
B58: 52 | C58: Vcar | D58: =(F58+X58)/1000000 -> 131.483692 | E58: 14971 | F58: 65175154 | G58: 4353.43 | H58: 1413 | I58: 3163 | J58: 5799 | K58: 107310 | L58: 27148414 | M58: 252.991 | N58: 94 | O58: 148 | P58: 253 | Q58: 92339 | R58: 37842062 | S58: 409.817 | T58: 204 | U58: 339 | V58: 512 | W58: 14816 | X58: 66308538 | Y58: 574 | Z58: 1629.5 | AA58: 4319
B59: 53 | C59: Cvar | D59: =(F59+X59)/1000000 -> 46.163452 | E59: 9791 | F59: 28654304 | G59: 2926.6 | H59: 1334 | I59: 2260 | J59: 3731 | K59: 81308 | L59: 13780153 | M59: 169.481 | N59: 82 | O59: 120 | P59: 184 | Q59: 71516 | R59: 14731131 | S59: 205.984 | T59: 132 | U59: 170 | V59: 218 | W59: 10122 | X59: 17509148 | Y59: 349 | Z59: 689 | AA59: 1728
B60: 54 | C60: Mpus | D60: =(F60+X60)/1000000 -> 22.020696 | E60: 10672 | F60: 16939883 | G60: 1587.32 | H60: 787 | I60: 1257 | J60: 1952 | K60: 20628 | L60: 15028317 | M60: 728.54 | N60: 213 | O60: 476 | P60: 942 | Q60: 0 | R60: 0 | S60: 0 | T60: 0 | U60: 0 | V60: 0 | W60: 10266 | X60: 5080813 | Y60: 137 | Z60: 260 | AA60: 536
B61: 55 | C61: Cmer | D61: =(F61+X61)/1000000 -> 16.549953 | E61: 4803 | F61: 7443912 | G61: 1549.85 | H61: 818 | I61: 1274 | J61: 1928 | K61: 4830 | L61: 7437192 | M61: 1539.79 | N61: 809 | O61: 1259 | P61: 1916 | Q61: 27 | R61: 6666 | S61: 246.889 | T61: 115 | U61: 233 | V61: 276 | W61: 4751 | X61: 9106041 | Y61: 713 | Z61: 1543 | AA61: 2709
B62: 56 | C62: Pyez | D62: =(F62+X62)/1000000 -> 43.473636 | E62: 10327 | F62: 9839787 | G62: 952.821 | H62: 398 | I62: 695 | J62: 1240 | K62: 13848 | L62: 8766631 | M62: 633.061 | N62: 230 | O62: 434 | P62: 808 | Q62: 3521 | R62: 1066114 | S62: 302.787 | T62: 197 | U62: 253 | V62: 337 | W62: 52395 | X62: 33633849 | Y62: 253 | Z62: 399 | AA62: 723
B63: 57 | C63: Cpar | D63: =(F63+X63)/1000000 -> 70.191008 | E63: 11011 | F63: 16573018 | G63: 1505.13 | H63: 506 | I63: 899 | J63: 1679 | K63: 71602 | L63: 9938696 | M63: 138.805 | N63: 62 | O63: 96 | P63: 153 | Q63: 60591 | R63: 6513140 | S63: 107.494 | T63: 57 | U63: 66 | V63: 85 | W63: 71109 | X63: 53617990 | Y63: 185 | Z63: 415 | AA63: 938
B64: 58 | C64: Esil | D64: =(F64+X64)/1000000 -> 195.948338 | E64: 18435 | F64: 114266502 | G64: 6198.35 | H64: 1930 | I64: 4631 | J64: 8576 | K64: 136440 | L64: 27054090 | M64: 198.286 | N64: 94 | O64: 136 | P64: 200 | Q64: 0 | R64: 0 | S64: 0 | T64: 0 | U64: 0 | V64: 0 | W64: 19364 | X64: 81681836 | Y64: 977 | Z64: 2248 | AA64: 4326
B65: 59 | C65: Tpse | D65: =(F65+X65)/1000000 -> 32.425971 | E65: 11674 | F65: 19569434 | G65: 1676.33 | H65: 839 | I65: 1314 | J65: 2044 | K65: 29327 | L65: 17394944 | M65: 593.138 | N65: 155 | O65: 376 | P65: 788 | Q65: 0 | R65: 0 | S65: 0 | T65: 0 | U65: 0 | V65: 0 | W65: 11724 | X65: 12856537 | Y65: 329 | Z65: 639 | AA65: 1330
B66: 60 | C66: Pinf | D66: =(F66+X66)/1000000 -> 228.527036 | E66: 17785 | F66: 26276108 | G66: 1477.43 | H66: 680 | I66: 1126 | J66: 1798 | K66: 49144 | L66: 22373137 | M66: 455.257 | N66: 89 | O66: 209 | P66: 529 | Q66: 31359 | R66: 3840253 | S66: 122.461 | T66: 62 | U66: 72 | V66: 104 | W66: 22693 | X66: 202250928 | Y66: 388 | Z66: 1566 | AA66: 6595
B67: 61 | C67: Alai | D67: =(F67+X67)/1000000 -> 38.596872 | E67: 13804 | F67: 24401669 | G67: 1767.72 | H67: 526 | I67: 1071 | J67: 2007 | K67: 43008 | L67: 18847947 | M67: 438.243 | N67: 92 | O67: 184 | P67: 426 | Q67: 29204 | R67: 5495314 | S67: 188.17 | T67: 51 | U67: 55 | V67: 62 | W67: 15959 | X67: 14195203 | Y67: 153 | Z67: 350 | AA67: 938
B68: 62 | C68: Tgon | D68: =(F68+X68)/1000000 -> 62.997711 | E68: 7988 | F68: 35852022 | G68: 4488.24 | H68: 1456 | I68: 3201.5 | J68: 6096 | K68: 42490 | L68: 17801342 | M68: 418.954 | N68: 98 | O68: 167 | P68: 364 | Q68: 0 | R68: 0 | S68: 0 | T68: 0 | U68: 0 | V68: 0 | W68: 8293 | X68: 27145689 | Y68: 1575 | Z68: 2535 | AA68: 3917
B69: 63 | C69: Tthe | D69: =(F69+X69)/1000000 -> 102.98965 | E69: 24725 | F69: 62562727 | G69: 2530.34 | H69: 905 | I69: 1796 | J69: 3329 | K69: 114059 | L69: 48013956 | M69: 420.957 | N69: 98 | O69: 215 | P69: 493 | Q69: 89334 | R69: 14370103 | S69: 160.858 | T69: 56 | U69: 84 | V69: 183 | W69: 25883 | X69: 40426923 | Y69: 674 | Z69: 1120 | AA69: 1837
B70: 64 | C70: Bnat | D70: =(F70+X70)/1000000 -> 94.681563 | E70: 21706 | F70: 59241592 | G70: 2729.27 | H70: 1077 | I70: 1932 | J70: 3517 | K70: 188833 | L70: 28568464 | M70: 151.29 | N70: 53 | O70: 77 | P70: 136 | Q70: 167127 | R70: 30338874 | S70: 181.532 | T70: 91 | U70: 151 | V70: 227 | W70: 21928 | X70: 35439971 | Y70: 650 | Z70: 1067 | AA70: 1817
B71: 65 | C71: Rfil | D71: =(F71+X71)/1000000 -> 101.827082 | E71: 39963 | F71: 43219597 | G71: 1081.49 | H71: 575 | I71: 864 | J71: 1325 | K71: 100640 | L71: 37994827 | M71: 377.532 | N71: 144 | O71: 279 | P71: 484 | Q71: 60677 | R71: 5103416 | S71: 84.1079 | T71: 46 | U71: 77 | V71: 115 | W71: 87328 | X71: 58607485 | Y71: 108 | Z71: 485 | AA71: 890
B72: 66 | C72: Ehux | D72: =(F72+X72)/1000000 -> 167.643149 | E72: 38544 | F72: 61854506 | G72: 1604.78 | H72: 665 | I72: 1132 | J72: 2003 | K72: 134733 | L72: 39528040 | M72: 293.381 | N72: 80 | O72: 167 | P72: 377 | Q72: 96189 | R72: 22134088 | S72: 230.11 | T72: 74 | U72: 122 | V72: 224 | W72: 46215 | X72: 105788643 | Y72: 538 | Z72: 1330 | AA72: 2839
B73: 67 | C73: Gthe | D73: =(F73+X73)/1000000 -> 87.245691 | E73: 24945 | F73: 44670002 | G73: 1790.74 | H73: 707 | I73: 1275 | J73: 2240 | K73: 157632 | L73: 30430537 | M73: 193.048 | N73: 55 | O73: 82 | P73: 153 | Q73: 132687 | R73: 13974091 | S73: 105.316 | T73: 46 | U73: 52 | V73: 115 | W73: 25536 | X73: 42575689 | Y73: 420 | Z73: 1057 | AA73: 2104
B74: 68 | C74: Ngru | D74: =(F74+X74)/1000000 -> 40.950276 | E74: 15709 | F74: 25762397 | G74: 1639.98 | H74: 788 | I74: 1232 | J74: 1937 | K74: 26397 | L74: 23582038 | M74: 893.361 | N74: 289 | O74: 624 | P74: 1178 | Q74: 10688 | R74: 2158983 | S74: 202.001 | T74: 44 | U74: 57 | V74: 117 | W74: 16457 | X74: 15187879 | Y74: 193 | Z74: 398 | AA74: 851
B75: 69 | C75: Bsal | D75: =(F75+X75)/1000000 -> 39.851094 | E75: 13300 | F75: 29168359 | G75: 2193.11 | H75: 935 | I75: 1538 | J75: 2627 | K75: 17891 | L75: 27651516 | M75: 1545.55 | N75: 641 | O75: 1151 | P75: 1952 | Q75: 4591 | R75: 1507661 | S75: 328.395 | T75: 45 | U75: 189 | V75: 392 | W75: 15546 | X75: 10682735 | Y75: 181 | Z75: 332 | AA75: 790
B76: 70 | C76: Tcru | D76: =(F76+X76)/1000000 -> 89.592901 | E76: 19607 | F76: 29251011 | G76: 1491.87 | H76: 668 | I76: 1109 | J76: 1829 | K76: 19610 | L76: 29247774 | M76: 1491.47 | N76: 668 | O76: 1109 | P76: 1829 | Q76: 3 | R76: 3231 | S76: 1077 | T76: 302 | U76: 1459 | V76: 1470 | W76: 50172 | X76: 60341890 | Y76: 577 | Z76: 900 | AA76: 1142
B77: 71 | C77: Lmaj | D77: =(F77+X77)/1000000 -> 32.846787 | E77: 8308 | F77: 15698191 | G77: 1889.53 | H77: 833 | I77: 1400 | J77: 2288 | K77: 8312 | L77: 15692860 | M77: 1887.98 | N77: 833 | O77: 1400 | P77: 2288 | Q77: 4 | R77: 5323 | S77: 1330.75 | T77: 1 | U77: 434 | V77: 867 | W77: 8344 | X77: 17148596 | Y77: 936 | Z77: 1441 | AA77: 2407
B78: 72 | C78: Glam | D78: =(F78+X78)/1000000 -> 11.633861 | E78: 7364 | F78: 9749240 | G78: 1323.91 | H78: 293 | I78: 761 | J78: 1745 | K78: 7368 | L78: 9748840 | M78: 1323.13 | N78: 293 | O78: 761 | P78: 1745 | Q78: 4 | R78: 392 | S78: 98 | T78: 31 | U78: 71 | V78: 108 | W78: 5255 | X78: 1884621 | Y78: 43 | Z78: 102 | AA78: 314
